[Event "Early-Titled-Tuesday-Blitz-January-30-2024"]
[Site "Chess.com"]
[Date "2024.01.30"]
[Round "1"]
[White "Imagine_Drag0n"]
[Black "Slovineanu"]
[Result "1-0"]
[WhiteElo "2784"]
[BlackElo "2435"]
[TimeControl "180+1"]
[EndTime "8:07:32 PST"]
[Termination "Imagine_Drag0n won by resignation"]

1. e4 {[%clk 0:03:00.9]} 1... c6 {[%clk 0:02:56.3]} 2. d4 {[%clk 0:03:00.4]}
2... d5 {[%clk 0:02:56.5]} 3. f3 {[%clk 0:03:00.7]} 3... dxe4 {[%clk 0:02:56]}
4. fxe4 {[%clk 0:02:59]} 4... e5 {[%clk 0:02:56.6]} 5. Nf3 {[%clk 0:02:58.8]}
5... Be6 {[%clk 0:02:55.4]} 6. Nc3 {[%clk 0:02:57.6]} 6... Nd7 {[%clk
0:02:51.4]} 7. Be3 {[%clk 0:02:32.3]} 7... Ngf6 {[%clk 0:02:36.6]} 8. Qd2 {[%clk
0:02:31.2]} 8... Bb4 {[%clk 0:02:32.8]} 9. Bd3 {[%clk 0:02:29]} 9... O-O {[%clk
0:02:22.4]} 10. a3 {[%clk 0:02:06.9]} 10... Bxc3 {[%clk 0:02:11.1]} 11. bxc3
{[%clk 0:02:07.8]} 11... c5 {[%clk 0:01:58.9]} 12. d5 {[%clk 0:02:05.3]} 12...
Bg4 {[%clk 0:01:58.8]} 13. O-O {[%clk 0:01:36.5]} 13... Ne8 {[%clk 0:01:40]} 14.
Qf2 {[%clk 0:01:18.7]} 14... Bxf3 {[%clk 0:01:34.5]} 15. gxf3 {[%clk 0:01:18.3]}
15... b6 {[%clk 0:01:31.1]} 16. f4 {[%clk 0:01:11.9]} 16... exf4 {[%clk
0:01:25.7]} 17. Bxf4 {[%clk 0:01:07]} 17... Qe7 {[%clk 0:01:20.5]} 18. e5 {[%clk
0:01:02.8]} 18... Nxe5 {[%clk 0:01:03.8]} 19. Rae1 {[%clk 0:00:31.6]} 19... Nxd3
{[%clk 0:01:03.3]} 20. Rxe7 {[%clk 0:00:31.2]} 20... Nxf2 {[%clk 0:01:03]} 21.
Rxf2 {[%clk 0:00:31.9]} 21... Nf6 {[%clk 0:01:02.2]} 22. c4 {[%clk 0:00:31]}
22... Rfe8 {[%clk 0:00:59]} 23. Rfe2 {[%clk 0:00:30.8]} 23... Rxe7 {[%clk
0:00:49.9]} 24. Rxe7 {[%clk 0:00:31.7]} 24... h6 {[%clk 0:00:49.1]} 25. Rb7
{[%clk 0:00:25.4]} 25... Re8 {[%clk 0:00:42]} 26. d6 {[%clk 0:00:21.6]} 26...
Re4 {[%clk 0:00:39.2]} 27. Bg3 {[%clk 0:00:16.5]} 27... Rxc4 {[%clk 0:00:16.2]}
28. Be5 {[%clk 0:00:16.1]} 28... Rxc2 {[%clk 0:00:05.8]} 29. Bxf6 {[%clk
0:00:15]} 29... gxf6 {[%clk 0:00:06.2]} 30. d7 {[%clk 0:00:15.6]} 30... Rd2
{[%clk 0:00:04.1]} 31. Rb8+ {[%clk 0:00:15.4]} 31... Kg7 {[%clk 0:00:04.4]} 32.
d8=Q {[%clk 0:00:15.8]} 32... Rxd8 {[%clk 0:00:04.8]} 33. Rxd8 {[%clk
0:00:16.7]} 33... c4 {[%clk 0:00:05.2]} 34. Kf2 {[%clk 0:00:14.5]} 34... f5
{[%clk 0:00:05]} 35. Rc8 {[%clk 0:00:12.4]} 35... b5 {[%clk 0:00:04.7]} 36. Rc5
{[%clk 0:00:12.3]} 36... a6 {[%clk 0:00:04.4]} 37. Rxf5 {[%clk 0:00:12.5]} 37...
Kg6 {[%clk 0:00:03.3]} 38. Rc5 {[%clk 0:00:12.7]} 38... f6 {[%clk 0:00:02.9]}
39. Rc6 {[%clk 0:00:12.7]} 39... a5 {[%clk 0:00:02.5]} 40. Rc5 {[%clk
0:00:12.9]} 40... b4 {[%clk 0:00:02.5]} 41. axb4 {[%clk 0:00:13.1]} 1-0

[Event "Early-Titled-Tuesday-Blitz-January-30-2024"]
[Site "Chess.com"]
[Date "2024.01.30"]
[Round "1"]
[White "Klavdia_Nik"]
[Black "Casablanca"]
[Result "0-1"]
[WhiteElo "2139"]
[BlackElo "2572"]
[TimeControl "180+1"]
[EndTime "8:07:32 PST"]
[Termination "Casablanca won on time"]

1. Nf3 {[%clk 0:03:00.7]} 1... Nf6 {[%clk 0:02:59.9]} 2. c4 {[%clk 0:03:00.6]}
2... c5 {[%clk 0:02:58.9]} 3. b3 {[%clk 0:03:00.3]} 3... g6 {[%clk 0:02:59.1]}
4. Bb2 {[%clk 0:03:00.5]} 4... Bg7 {[%clk 0:03:00]} 5. g3 {[%clk 0:03:00.9]}
5... O-O {[%clk 0:02:59.8]} 6. Bg2 {[%clk 0:03:01.3]} 6... Nc6 {[%clk
0:02:59.4]} 7. O-O {[%clk 0:03:01.5]} 7... d6 {[%clk 0:03:00]} 8. d4 {[%clk
0:03:01.5]} 8... cxd4 {[%clk 0:03:00.8]} 9. Nxd4 {[%clk 0:03:02]} 9... Bd7
{[%clk 0:03:01.7]} 10. Nc2 {[%clk 0:03:00]} 10... Rc8 {[%clk 0:03:01.2]} 11. Nc3
{[%clk 0:02:59.2]} 11... a6 {[%clk 0:02:52.9]} 12. Rb1 {[%clk 0:02:58.7]} 12...
Ne5 {[%clk 0:02:51.7]} 13. e4 {[%clk 0:02:56.5]} 13... b5 {[%clk 0:02:38.5]} 14.
cxb5 {[%clk 0:02:49.5]} 14... axb5 {[%clk 0:02:37.3]} 15. Ne3 {[%clk 0:02:44.1]}
15... Nfg4 {[%clk 0:02:22.3]} 16. Ncd5 {[%clk 0:02:33.8]} 16... Nxe3 {[%clk
0:02:21.3]} 17. Nxe3 {[%clk 0:02:33.1]} 17... Be6 {[%clk 0:01:57.3]} 18. h3
{[%clk 0:02:09.2]} 18... Qb6 {[%clk 0:01:56.2]} 19. Kh2 {[%clk 0:02:00]} 19...
Ra8 {[%clk 0:01:38.6]} 20. a3 {[%clk 0:01:57]} 20... Rfc8 {[%clk 0:01:38.1]} 21.
Nd5 {[%clk 0:01:40]} 21... Bxd5 {[%clk 0:01:38.1]} 22. exd5 {[%clk 0:01:35]}
22... Ra7 {[%clk 0:01:02.8]} 23. Bd4 {[%clk 0:01:27.2]} 23... Qa6 {[%clk
0:00:59.8]} 24. Bxa7 {[%clk 0:01:26.1]} 24... Qxa7 {[%clk 0:01:00.7]} 25. a4
{[%clk 0:01:18.7]} 25... b4 {[%clk 0:00:56.3]} 26. Rc1 {[%clk 0:01:09.2]} 26...
Rb8 {[%clk 0:00:56.5]} 27. Qc2 {[%clk 0:01:03.6]} 27... Bf6 {[%clk 0:00:48.9]}
28. f4 {[%clk 0:00:58.5]} 28... Nd7 {[%clk 0:00:41.9]} 29. Qc7 {[%clk
0:00:53.9]} 29... Qxc7 {[%clk 0:00:33.7]} 30. Rxc7 {[%clk 0:00:54.8]} 30... Nc5
{[%clk 0:00:34.6]} 31. Rb1 {[%clk 0:00:49.1]} 31... Kf8 {[%clk 0:00:27.2]} 32.
Bf1 {[%clk 0:00:33.5]} 32... Ra8 {[%clk 0:00:25.7]} 33. Bb5 {[%clk 0:00:27.4]}
33... Bc3 {[%clk 0:00:25.3]} 34. Kg2 {[%clk 0:00:24.4]} 34... Bd4 {[%clk
0:00:23]} 35. Kf3 {[%clk 0:00:22.5]} 35... Ra5 {[%clk 0:00:17.9]} 36. Bc4 {[%clk
0:00:21]} 36... h6 {[%clk 0:00:18.2]} 37. Re1 {[%clk 0:00:18]} 37... Bf6 {[%clk
0:00:17.5]} 38. g4 {[%clk 0:00:18.2]} 38... Ra8 {[%clk 0:00:17.1]} 39. Rg1
{[%clk 0:00:13.6]} 39... g5 {[%clk 0:00:17.5]} 40. Re1 {[%clk 0:00:06.6]} 40...
Ke8 {[%clk 0:00:16.1]} 0-1

[Event "Early-Titled-Tuesday-Blitz-January-30-2024"]
[Site "Chess.com"]
[Date "2024.01.30"]
[Round "1"]
[White "mac0504"]
[Black "Shodikulov_Jamshid1990"]
[Result "1-0"]
[WhiteElo "2729"]
[BlackElo "2397"]
[TimeControl "180+1"]
[EndTime "8:07:33 PST"]
[Termination "mac0504 won by resignation"]

1. c4 {[%clk 0:03:00.9]} 1... Nf6 {[%clk 0:02:59.1]} 2. Nc3 {[%clk 0:03:01.3]}
2... c5 {[%clk 0:02:58.9]} 3. g3 {[%clk 0:02:59.1]} 3... e6 {[%clk 0:02:58.7]}
4. Bg2 {[%clk 0:02:59.6]} 4... Nc6 {[%clk 0:02:59.3]} 5. e3 {[%clk 0:02:58.7]}
5... d5 {[%clk 0:02:56.8]} 6. cxd5 {[%clk 0:02:57.2]} 6... exd5 {[%clk
0:02:57.7]} 7. d3 {[%clk 0:02:55.6]} 7... Be7 {[%clk 0:02:51.7]} 8. Nge2 {[%clk
0:02:55.4]} 8... O-O {[%clk 0:02:52.3]} 9. O-O {[%clk 0:02:55.5]} 9... Re8
{[%clk 0:02:49.3]} 10. h3 {[%clk 0:02:55.3]} 10... Bf5 {[%clk 0:02:43.5]} 11. b3
{[%clk 0:02:52.8]} 11... Qd7 {[%clk 0:02:34.9]} 12. Kh2 {[%clk 0:02:49.3]} 12...
h6 {[%clk 0:02:24.5]} 13. Bb2 {[%clk 0:02:47.7]} 13... Rad8 {[%clk 0:02:22.9]}
14. d4 {[%clk 0:02:35.8]} 14... b6 {[%clk 0:02:16.1]} 15. a3 {[%clk 0:02:20.1]}
15... c4 {[%clk 0:01:24.8]} 16. bxc4 {[%clk 0:02:14.6]} 16... dxc4 {[%clk
0:01:25.7]} 17. e4 {[%clk 0:02:05.4]} 17... Bh7 {[%clk 0:01:22]} 18. e5 {[%clk
0:02:04.9]} 18... Nh5 {[%clk 0:00:55.2]} 19. Nd5 {[%clk 0:01:54.7]} 19... Bf8
{[%clk 0:00:26.4]} 20. g4 {[%clk 0:01:47]} 20... Bd3 {[%clk 0:00:26.2]} 21. gxh5
{[%clk 0:01:42.6]} 21... Qf5 {[%clk 0:00:19.1]} 22. Ng3 {[%clk 0:01:32.1]} 22...
Qg5 {[%clk 0:00:19.4]} 23. f4 {[%clk 0:00:53.8]} 23... Qh4 {[%clk 0:00:19.5]}
24. Rf3 {[%clk 0:00:54.6]} 24... Bh7 {[%clk 0:00:16]} 25. Ne3 {[%clk 0:00:50.7]}
25... Rd7 {[%clk 0:00:12.1]} 26. Nef5 {[%clk 0:00:46.6]} 26... Qd8 {[%clk
0:00:11.8]} 27. Qg1 {[%clk 0:00:40.2]} 27... Na5 {[%clk 0:00:11.8]} 28. Rd1
{[%clk 0:00:39.8]} 28... Kh8 {[%clk 0:00:11.6]} 29. Rf2 {[%clk 0:00:31]} 29...
b5 {[%clk 0:00:11.9]} 30. d5 {[%clk 0:00:29.8]} 30... Nb3 {[%clk 0:00:11.9]} 31.
Re2 {[%clk 0:00:17.4]} 31... Nc5 {[%clk 0:00:12.4]} 32. Bd4 {[%clk 0:00:13.5]}
32... Nd3 {[%clk 0:00:13.1]} 33. Qe3 {[%clk 0:00:12.9]} 33... a6 {[%clk
0:00:12.9]} 34. d6 {[%clk 0:00:11.5]} 34... Qc8 {[%clk 0:00:11.9]} 35. Be4
{[%clk 0:00:11.9]} 35... g6 {[%clk 0:00:08.2]} 36. hxg6 {[%clk 0:00:11.6]} 36...
Bxg6 {[%clk 0:00:08.1]} 37. e6+ {[%clk 0:00:12]} 37... Kh7 {[%clk 0:00:08.7]}
38. exd7 {[%clk 0:00:12.2]} 38... Qxd7 {[%clk 0:00:08.7]} 39. Rxd3 {[%clk
0:00:11.8]} 39... cxd3 {[%clk 0:00:08.5]} 40. Qxd3 {[%clk 0:00:12.5]} 40... Bxd6
{[%clk 0:00:08.3]} 41. Nxd6 {[%clk 0:00:13]} 41... Qxd6 {[%clk 0:00:07.9]} 42.
Bxg6+ {[%clk 0:00:13.4]} 42... fxg6 {[%clk 0:00:08.8]} 43. Rxe8 {[%clk 0:00:14]}
1-0

[Event "Early-Titled-Tuesday-Blitz-January-30-2024"]
[Site "Chess.com"]
[Date "2024.01.30"]
[Round "1"]
[White "Iskusnyh"]
[Black "Laico"]
[Result "1-0"]
[WhiteElo "2668"]
[BlackElo "2347"]
[TimeControl "180+1"]
[EndTime "8:07:33 PST"]
[Termination "Iskusnyh won on time"]

1. d4 {[%clk 0:03:00]} 1... e6 {[%clk 0:01:45.6]} 2. c4 {[%clk 0:02:56.7]} 2...
f5 {[%clk 0:01:45.2]} 3. g3 {[%clk 0:02:55]} 3... Nf6 {[%clk 0:01:44.7]} 4. Bg2
{[%clk 0:02:54.9]} 4... Be7 {[%clk 0:01:43.8]} 5. Nc3 {[%clk 0:02:49]} 5... O-O
{[%clk 0:01:42.7]} 6. e3 {[%clk 0:02:45]} 6... Bb4 {[%clk 0:01:41.1]} 7. Ne2
{[%clk 0:02:44.8]} 7... d6 {[%clk 0:01:41.3]} 8. O-O {[%clk 0:02:40.7]} 8... Nc6
{[%clk 0:01:41.1]} 9. a3 {[%clk 0:02:35.8]} 9... Bxc3 {[%clk 0:01:39.7]} 10.
Nxc3 {[%clk 0:02:36.7]} 10... e5 {[%clk 0:01:37]} 11. b4 {[%clk 0:02:30.7]}
11... Rb8 {[%clk 0:01:35.5]} 12. Bb2 {[%clk 0:02:25.2]} 12... Qe8 {[%clk
0:01:35.1]} 13. Nd5 {[%clk 0:02:23.8]} 13... Qf7 {[%clk 0:01:35]} 14. b5 {[%clk
0:02:07.9]} 14... Na5 {[%clk 0:01:34.5]} 15. dxe5 {[%clk 0:02:07.6]} 15... Nxd5
{[%clk 0:01:25.3]} 16. Bxd5 {[%clk 0:01:56.9]} 16... Be6 {[%clk 0:01:25]} 17.
exd6 {[%clk 0:01:54.3]} 17... Nxc4 {[%clk 0:01:23]} 18. Bxc4 {[%clk 0:01:36.2]}
18... Bxc4 {[%clk 0:01:22.6]} 19. dxc7 {[%clk 0:01:35.2]} 19... Rbc8 {[%clk
0:01:22.6]} 20. Be5 {[%clk 0:01:29.7]} 20... Bxf1 {[%clk 0:01:21.9]} 21. Qxf1
{[%clk 0:01:29.4]} 21... Qd5 {[%clk 0:01:20.4]} 22. Bf4 {[%clk 0:01:25.5]} 22...
h6 {[%clk 0:01:19.6]} 23. h4 {[%clk 0:01:23.1]} 23... g5 {[%clk 0:01:18]} 24.
hxg5 {[%clk 0:01:19.4]} 24... hxg5 {[%clk 0:01:18.2]} 25. Rd1 {[%clk 0:01:19.9]}
25... Qf3 {[%clk 0:01:06.4]} 26. Qc4+ {[%clk 0:01:15.1]} 26... Kh7 {[%clk
0:00:57.5]} 27. Rd7+ {[%clk 0:01:13.9]} 27... Kg6 {[%clk 0:00:56.5]} 28. Be5
{[%clk 0:01:07.9]} 28... Rce8 {[%clk 0:00:19.1]} 29. Qd4 {[%clk 0:00:20.1]}
29... f4 {[%clk 0:00:10]} 30. exf4 {[%clk 0:00:18.9]} 30... gxf4 {[%clk
0:00:09.5]} 31. Rg7+ {[%clk 0:00:18.1]} 31... Kh5 {[%clk 0:00:07]} 32. g4+
{[%clk 0:00:17.9]} 32... Kh4 {[%clk 0:00:05.7]} 33. Bf6+ {[%clk 0:00:17.8]}
33... Kh3 {[%clk 0:00:05.5]} 34. Rh7+ {[%clk 0:00:17.6]} 34... Kxg4 {[%clk
0:00:05.7]} 35. Qd7+ {[%clk 0:00:17.4]} 1-0

[Event "Early-Titled-Tuesday-Blitz-January-30-2024"]
[Site "Chess.com"]
[Date "2024.01.30"]
[Round "1"]
[White "Dream2World_Number1"]
[Black "mbchess97"]
[Result "0-1"]
[WhiteElo "2645"]
[BlackElo "2363"]
[TimeControl "180+1"]
[EndTime "8:07:33 PST"]
[Termination "mbchess97 won on time"]

1. e4 {[%clk 0:03:00.9]} 1... d6 {[%clk 0:02:59.9]} 2. d4 {[%clk 0:03:00.5]}
2... e5 {[%clk 0:02:55.9]} 3. Nf3 {[%clk 0:02:58.8]} 3... exd4 {[%clk
0:02:53.7]} 4. Nxd4 {[%clk 0:02:59.6]} 4... g6 {[%clk 0:02:53.5]} 5. Nc3 {[%clk
0:02:58.6]} 5... Bg7 {[%clk 0:02:53.7]} 6. Bf4 {[%clk 0:02:58.4]} 6... Nc6
{[%clk 0:02:50.9]} 7. Nb3 {[%clk 0:02:51.6]} 7... a5 {[%clk 0:02:44.6]} 8. Bb5
{[%clk 0:02:48]} 8... Bd7 {[%clk 0:02:44.2]} 9. O-O {[%clk 0:02:42.5]} 9... Ne5
{[%clk 0:02:41.5]} 10. Bxd7+ {[%clk 0:02:40.6]} 10... Qxd7 {[%clk 0:02:40.2]}
11. Nd5 {[%clk 0:02:37.7]} 11... Ne7 {[%clk 0:02:37.4]} 12. Bh6 {[%clk
0:02:22.3]} 12... O-O {[%clk 0:02:28.8]} 13. Bxg7 {[%clk 0:02:21.7]} 13... Kxg7
{[%clk 0:02:28.5]} 14. f4 {[%clk 0:02:22.6]} 14... Nxd5 {[%clk 0:02:19.2]} 15.
exd5 {[%clk 0:02:20.6]} 15... Ng4 {[%clk 0:02:14.2]} 16. f5 {[%clk 0:02:19.4]}
16... Ne5 {[%clk 0:02:08.3]} 17. f6+ {[%clk 0:02:17.3]} 17... Kh8 {[%clk
0:02:03.9]} 18. Nc1 {[%clk 0:02:07]} 18... Qa4 {[%clk 0:01:14.5]} 19. Qd2 {[%clk
0:02:01.6]} 19... Qh4 {[%clk 0:01:09.1]} 20. Nd3 {[%clk 0:01:27.2]} 20... Qd4+
{[%clk 0:00:57.7]} 21. Kh1 {[%clk 0:01:26]} 21... Qxd5 {[%clk 0:00:56.1]} 22.
Qh6 {[%clk 0:01:22.4]} 22... Rg8 {[%clk 0:00:56.4]} 23. Nf4 {[%clk 0:00:29.6]}
23... Qe4 {[%clk 0:00:23.7]} 24. Rae1 {[%clk 0:00:28.6]} 24... Qf5 {[%clk
0:00:23.8]} 25. Nd5 {[%clk 0:00:13.2]} 25... Qxc2 {[%clk 0:00:12.1]} 26. Ne7
{[%clk 0:00:10.5]} 26... Qxb2 {[%clk 0:00:10.8]} 27. Re3 {[%clk 0:00:09.5]}
27... Ng4 {[%clk 0:00:10]} 28. Rh3 {[%clk 0:00:01.4]} 28... Nxh6 {[%clk
0:00:09.6]} 29. Rxh6 {[%clk 0:00:02.3]} 29... Rae8 {[%clk 0:00:07.9]} 30. Rf3
{[%clk 0:00:00.9]} 30... Qxf6 {[%clk 0:00:05.4]} 31. Rxf6 {[%clk 0:00:00.9]}
31... Kg7 {[%clk 0:00:04.9]} 0-1

[Event "Early-Titled-Tuesday-Blitz-January-30-2024"]
[Site "Chess.com"]
[Date "2024.01.30"]
[Round "1"]
[White "ChessboArt"]
[Black "Kunalm64"]
[Result "0-1"]
[WhiteElo "2192"]
[BlackElo "2581"]
[TimeControl "180+1"]
[EndTime "8:07:33 PST"]
[Termination "Kunalm64 won on time"]

1. Nf3 {[%clk 0:03:00.9]} 1... Nf6 {[%clk 0:02:59.7]} 2. g3 {[%clk 0:03:01]}
2... d5 {[%clk 0:02:59.8]} 3. Bg2 {[%clk 0:03:00.5]} 3... c6 {[%clk 0:03:00.4]}
4. b3 {[%clk 0:03:00.6]} 4... Bf5 {[%clk 0:03:00.3]} 5. Bb2 {[%clk 0:03:01.1]}
5... e6 {[%clk 0:03:00.5]} 6. d3 {[%clk 0:03:01.6]} 6... h6 {[%clk 0:03:00.7]}
7. Nbd2 {[%clk 0:03:02.1]} 7... Bh7 {[%clk 0:03:00.3]} 8. O-O {[%clk 0:03:02.6]}
8... Be7 {[%clk 0:03:00]} 9. Qe1 {[%clk 0:03:00.2]} 9... O-O {[%clk 0:02:59.2]}
10. e4 {[%clk 0:02:59.4]} 10... c5 {[%clk 0:02:58.9]} 11. Ne5 {[%clk 0:02:38.5]}
11... Nc6 {[%clk 0:02:54.8]} 12. Nxc6 {[%clk 0:02:35.6]} 12... bxc6 {[%clk
0:02:54.3]} 13. e5 {[%clk 0:02:08.1]} 13... Nd7 {[%clk 0:02:50.6]} 14. Qe2
{[%clk 0:02:08.7]} 14... Nb6 {[%clk 0:02:33.6]} 15. a4 {[%clk 0:01:45.5]} 15...
a5 {[%clk 0:02:30.9]} 16. Kh1 {[%clk 0:01:45.6]} 16... Rc8 {[%clk 0:02:28.1]}
17. f4 {[%clk 0:01:37.1]} 17... c4 {[%clk 0:02:11.6]} 18. dxc4 {[%clk
0:01:36.3]} 18... Bxc2 {[%clk 0:02:06]} 19. Rac1 {[%clk 0:01:10.7]} 19... Bh7
{[%clk 0:01:55.1]} 20. c5 {[%clk 0:01:03.9]} 20... Nd7 {[%clk 0:01:53.6]} 21.
Bd4 {[%clk 0:01:04.4]} 21... Rb8 {[%clk 0:01:52.8]} 22. g4 {[%clk 0:00:59.9]}
22... Rb4 {[%clk 0:01:40.1]} 23. Qe3 {[%clk 0:00:59.6]} 23... Qa8 {[%clk
0:01:32.6]} 24. f5 {[%clk 0:00:56.5]} 24... Bg5 {[%clk 0:01:30.9]} 25. Qd3
{[%clk 0:00:51.8]} 25... f6 {[%clk 0:01:27.1]} 26. exf6 {[%clk 0:00:45.8]} 26...
Nxf6 {[%clk 0:01:20.6]} 27. Bc3 {[%clk 0:00:40.3]} 27... Rxg4 {[%clk 0:01:19.5]}
28. Bh3 {[%clk 0:00:29.8]} 28... Bxf5 {[%clk 0:01:16.5]} 29. Rxf5 {[%clk
0:00:26.8]} 29... exf5 {[%clk 0:01:16.5]} 30. Bxg4 {[%clk 0:00:27.4]} 30... Nxg4
{[%clk 0:01:13.8]} 31. Qg3 {[%clk 0:00:18.9]} 31... Qd8 {[%clk 0:01:04.1]} 32.
h3 {[%clk 0:00:18.3]} 32... Nf6 {[%clk 0:00:43.5]} 33. Rf1 {[%clk 0:00:13.7]}
33... Bxd2 {[%clk 0:00:42.4]} 34. Bxd2 {[%clk 0:00:13.3]} 34... Ne4 {[%clk
0:00:43.1]} 35. Qf4 {[%clk 0:00:11.6]} 35... Nxd2 {[%clk 0:00:37]} 36. Qxd2
{[%clk 0:00:12.5]} 36... Qh4 {[%clk 0:00:37.2]} 37. Kh2 {[%clk 0:00:11.5]} 37...
f4 {[%clk 0:00:36.2]} 38. Qd3 {[%clk 0:00:10.3]} 38... Re8 {[%clk 0:00:34.5]}
39. Qf3 {[%clk 0:00:08.3]} 39... Re7 {[%clk 0:00:34]} 40. Qxf4 {[%clk
0:00:07.9]} 40... Re2+ {[%clk 0:00:32.5]} 41. Kg1 {[%clk 0:00:06.3]} 41... Qxh3
{[%clk 0:00:23.5]} 0-1

[Event "Early-Titled-Tuesday-Blitz-January-30-2024"]
[Site "Chess.com"]
[Date "2024.01.30"]
[Round "1"]
[White "MalyDominator"]
[Black "ContrVersia"]
[Result "0-1"]
[WhiteElo "2481"]
[BlackElo "2861"]
[TimeControl "180+1"]
[EndTime "8:07:35 PST"]
[Termination "ContrVersia won by resignation"]

1. e4 {[%clk 0:03:00.9]} 1... c5 {[%clk 0:02:53.6]} 2. Nf3 {[%clk 0:03:00.1]}
2... a6 {[%clk 0:02:51.5]} 3. c4 {[%clk 0:02:59.1]} 3... Nc6 {[%clk 0:02:51.1]}
4. d4 {[%clk 0:02:59.2]} 4... cxd4 {[%clk 0:02:52]} 5. Nxd4 {[%clk 0:02:59.8]}
5... e5 {[%clk 0:02:50.6]} 6. Nf5 {[%clk 0:02:45.8]} 6... d6 {[%clk 0:02:50.6]}
7. Nc3 {[%clk 0:02:39.8]} 7... g6 {[%clk 0:02:50.4]} 8. Ne3 {[%clk 0:02:39.1]}
8... Bh6 {[%clk 0:02:50.6]} 9. Be2 {[%clk 0:02:39.1]} 9... Be6 {[%clk
0:02:49.7]} 10. O-O {[%clk 0:02:39.7]} 10... Nf6 {[%clk 0:02:50.1]} 11. Qd3
{[%clk 0:02:12.8]} 11... O-O {[%clk 0:02:47]} 12. Rd1 {[%clk 0:02:12.3]} 12...
Nd4 {[%clk 0:02:33.2]} 13. Bf1 {[%clk 0:02:08.1]} 13... Rc8 {[%clk 0:02:32.2]}
14. b3 {[%clk 0:02:07.2]} 14... Kg7 {[%clk 0:02:19.2]} 15. Ne2 {[%clk
0:02:06.7]} 15... Nxe2+ {[%clk 0:02:14.5]} 16. Bxe2 {[%clk 0:02:07.6]} 16... Qa5
{[%clk 0:02:03]} 17. Bd2 {[%clk 0:01:44.1]} 17... Qb6 {[%clk 0:01:59.1]} 18. h3
{[%clk 0:01:35]} 18... Rfd8 {[%clk 0:01:58.5]} 19. Nf5+ {[%clk 0:01:31.8]} 19...
Bxf5 {[%clk 0:01:50]} 20. Bxh6+ {[%clk 0:01:27.4]} 20... Kxh6 {[%clk 0:01:50.9]}
21. exf5 {[%clk 0:01:28.1]} 21... d5 {[%clk 0:01:50.6]} 22. fxg6 {[%clk
0:01:17.9]} 22... hxg6 {[%clk 0:01:42.4]} 23. cxd5 {[%clk 0:01:15.2]} 23... Nxd5
{[%clk 0:01:38.5]} 24. Qg3 {[%clk 0:01:09.4]} 24... Nf4 {[%clk 0:01:35.6]} 25.
Bf1 {[%clk 0:01:05.5]} 25... Kg7 {[%clk 0:01:30.7]} 26. Qf3 {[%clk 0:00:51.9]}
26... Qc7 {[%clk 0:01:07.1]} 27. g3 {[%clk 0:00:48.5]} 27... Ne6 {[%clk
0:01:06.3]} 28. Bg2 {[%clk 0:00:45.5]} 28... b5 {[%clk 0:01:02]} 29. Qb7 {[%clk
0:00:34.2]} 29... Nd4 {[%clk 0:00:56.5]} 30. Qe4 {[%clk 0:00:25.4]} 30... a5
{[%clk 0:00:43.7]} 31. h4 {[%clk 0:00:20.6]} 31... Re8 {[%clk 0:00:35.9]} 32.
Kh2 {[%clk 0:00:09.7]} 32... Rcd8 {[%clk 0:00:34.6]} 33. Rac1 {[%clk 0:00:09.2]}
33... Qe7 {[%clk 0:00:34.1]} 34. Rc3 {[%clk 0:00:04.1]} 34... Rd6 {[%clk
0:00:30.9]} 35. Rcd3 {[%clk 0:00:04.6]} 35... Red8 {[%clk 0:00:21.7]} 36. Qe3
{[%clk 0:00:04.8]} 36... f6 {[%clk 0:00:15.8]} 37. R1d2 {[%clk 0:00:05.2]} 37...
Qc7 {[%clk 0:00:15.6]} 38. Qe4 {[%clk 0:00:04.6]} 38... b4 {[%clk 0:00:15.7]}
39. Qe3 {[%clk 0:00:04.5]} 39... Qc5 {[%clk 0:00:15.9]} 40. Qe4 {[%clk
0:00:04.4]} 40... f5 {[%clk 0:00:16.1]} 41. Qb7+ {[%clk 0:00:04.6]} 41... R8d7
{[%clk 0:00:15.8]} 42. Qb8 {[%clk 0:00:04.4]} 42... e4 {[%clk 0:00:15.9]} 43.
Qe8 {[%clk 0:00:04.3]} 43... exd3 {[%clk 0:00:14.9]} 0-1